[Event "NJSK 2026 Jeugd A"]
[Site "Helmond, Netherlands"]
[Date "2026.04.29"]
[Round "5.3"]
[White "Ten Dam, Bram"]
[Black "Dinanath, Hrdya"]
[Result "1-0"]
[TimeControl "90min/40moves + 30min + 30sec/move"]
[WhiteTitle "-"]
[BlackTitle "-"]
[WhiteFideId "40104877"]
[BlackFideId "1087991"]
[WhiteElo "2363"]
[BlackElo "2107"]

1. e4 {[%clk 01:30:58]} {[%emt 00:00:02]} e5 {[%clk 01:30:57]} {[%emt
00:00:03]} 2. Bc4 {[%clk 01:31:25]} {[%emt 00:00:04]} Nf6 {[%clk 01:31:21]}
{[%emt 00:00:06]} 3. Nc3 {[%clk 01:31:51]} {[%emt 00:00:04]} Nc6 {[%clk
01:19:25]} {[%emt 00:12:25]} 4. d3 {[%clk 01:32:08]} {[%emt 00:00:14]} Bb4
{[%clk 01:17:16]} {[%emt 00:02:39]} 5. Nf3 {[%clk 01:32:16]} {[%emt 00:00:22]}
h6 {[%clk 01:16:54]} {[%emt 00:00:52]} 6. O-O {[%clk 01:30:57]} {[%emt
00:01:48]} d6 {[%clk 01:16:48]} {[%emt 00:00:37]} 7. Nd5 {[%clk 01:30:15]}
{[%emt 00:01:11]} Bc5 {[%clk 01:15:32]} {[%emt 00:01:47]} 8. c3 {[%clk
01:29:41]} {[%emt 00:01:04]} a6 {[%clk 01:12:20]} {[%emt 00:03:42]} 9. Be3
{[%clk 01:25:12]} {[%emt 00:04:58]} O-O {[%clk 01:05:00]} {[%emt 00:07:51]} 10.
Bxc5 {[%clk 01:14:09]} {[%emt 00:11:33]} dxc5 {[%clk 01:05:25]} {[%emt
00:00:05]} 11. Ne3 {[%clk 01:14:07]} {[%emt 00:00:32]} Re8 {[%clk 00:59:32]}
{[%emt 00:06:23]} 12. a4 {[%clk 01:11:21]} {[%emt 00:03:21]} Be6 {[%clk
00:54:30]} {[%emt 00:05:27]} 13. Qc2 {[%clk 01:10:58]} {[%emt 00:00:53]} Bxc4
{[%clk 00:54:03]} {[%emt 00:00:57]} 14. dxc4 {[%clk 01:10:52]} {[%emt
00:00:35]} Qc8 {[%clk 00:42:12]} {[%emt 00:12:21]} 15. Rad1 {[%clk 01:08:01]}
{[%emt 00:03:21]} a5 {[%clk 00:30:03]} {[%emt 00:12:39]} 16. h3 {[%clk
01:01:22]} {[%emt 00:07:10]} b6 {[%clk 00:28:20]} {[%emt 00:02:14]} 17. Rfe1
{[%clk 01:00:26]} {[%emt 00:01:26]} Nd7 {[%clk 00:27:55]} {[%emt 00:00:55]} 18.
Nh4 {[%clk 00:58:36]} {[%emt 00:02:19]} Nf8 {[%clk 00:27:41]} {[%emt 00:00:44]}
19. Nhf5 {[%clk 00:56:48]} {[%emt 00:02:18]} Ne6 {[%clk 00:16:58]} {[%emt
00:11:14]} 20. Nd5 {[%clk 00:56:21]} {[%emt 00:00:56]} Nf4 {[%clk 00:16:03]}
{[%emt 00:01:25]} 21. Re3 {[%clk 00:55:29]} {[%emt 00:01:22]} Nxd5 {[%clk
00:14:21]} {[%emt 00:02:13]} 22. cxd5 {[%clk 00:55:53]} {[%emt 00:00:06]} Ne7
{[%clk 00:14:41]} {[%emt 00:00:10]} 23. d6 {[%clk 00:56:18]} {[%emt 00:00:05]}
cxd6 {[%clk 00:13:33]} {[%emt 00:01:38]} 24. Nxd6 {[%clk 00:56:43]} {[%emt
00:00:05]} Qc6 {[%clk 00:13:50]} {[%emt 00:00:13]} 25. Nxe8 {[%clk 00:57:08]}
{[%emt 00:00:05]} Rxe8 {[%clk 00:14:17]} {[%emt 00:00:02]} 26. Re2 {[%clk
00:56:13]} {[%emt 00:01:24]} Ng6 {[%clk 00:14:22]} {[%emt 00:00:27]} 27. Red2
{[%clk 00:56:38]} {[%emt 00:00:05]} Nf4 {[%clk 00:14:27]} {[%emt 00:00:24]} 28.
Rd6 {[%clk 00:56:46]} {[%emt 00:00:22]} Qc8 {[%clk 00:13:37]} {[%emt 00:01:20]}
29. Qb3 {[%clk 00:56:29]} {[%emt 00:00:47]} Qb7 {[%clk 00:13:36]} {[%emt
00:00:31]} 30. Rd7 {[%clk 00:56:53]} {[%emt 00:00:07]} 1-0

[Event "NJSK 2026 Jeugd A"]
[Site "Helmond, Netherlands"]
[Date "2026.04.29"]
[Round "5.4"]
[White "Kshirsagar, Pranav"]
[Black "Smeets, Kobe"]
[Result "0-1"]
[TimeControl "90min/40moves + 30min + 30sec/move"]
[WhiteTitle "-"]
[BlackTitle "-"]
[WhiteFideId "1084011"]
[BlackFideId "1063910"]
[WhiteElo "2148"]
[BlackElo "2315"]

1. d4 {[%clk 01:30:59]} Nf6 {[%clk 01:30:53]} {[%emt 00:00:07]} 2. c4 {[%clk
01:31:11]} {[%emt 00:00:19]} e6 {[%clk 01:31:17]} {[%emt 00:00:05]} 3. Nf3
{[%clk 01:31:37]} {[%emt 00:00:04]} d5 {[%clk 01:31:34]} {[%emt 00:00:14]} 4.
Nc3 {[%clk 01:32:01]} {[%emt 00:00:05]} Nbd7 {[%clk 01:31:53]} {[%emt
00:00:11]} 5. e3 {[%clk 01:28:01]} {[%emt 00:04:31]} a6 {[%clk 01:32:14]}
{[%emt 00:00:09]} 6. Be2 {[%clk 01:26:45]} {[%emt 00:01:46]} b6 {[%clk
01:29:57]} {[%emt 00:02:46]} 7. O-O {[%emt 00:00:47]} Bb7 {[%clk 01:30:21]} 8.
b3 {[%clk 01:26:38]} {[%emt 00:00:26]} Bd6 {[%clk 01:30:49]} {[%emt 00:00:02]}
9. Bb2 {[%clk 01:27:01]} {[%emt 00:00:07]} O-O {[%clk 01:31:13]} {[%emt
00:00:06]} 10. Bd3 {[%clk 01:15:01]} {[%emt 00:12:30]} Ne4 {[%clk 01:23:01]}
{[%emt 00:08:42]} 11. Rc1 {[%clk 01:12:13]} {[%emt 00:03:17]} f5 {[%clk
01:22:47]} {[%emt 00:00:44]} 12. Ne2 {[%clk 01:07:21]} {[%emt 00:05:23]} Qf6
{[%clk 01:13:24]} {[%emt 00:09:52]} 13. c5 {[%clk 00:51:44]} {[%emt 00:16:08]}
bxc5 {[%clk 01:13:42]} {[%emt 00:00:12]} 14. dxc5 {[%clk 00:52:10]} {[%emt
00:00:04]} Qxb2 {[%clk 01:14:02]} {[%emt 00:00:10]} 15. cxd6 {[%clk 00:52:15]}
{[%emt 00:00:25]} c5 {[%clk 00:59:37]} {[%emt 00:14:55]} 16. b4 {[%clk
00:47:00]} {[%emt 00:05:45]} Qf6 {[%clk 00:56:57]} {[%emt 00:03:08]} 17. Qa4
{[%clk 00:39:16]} {[%emt 00:08:16]} Rfd8 {[%clk 00:53:21]} {[%emt 00:04:07]} 18.
Qa5 {[%clk 00:26:22]} {[%emt 00:13:25]} c4 {[%clk 00:47:08]} {[%emt 00:06:43]}
19. Bxe4 {[%clk 00:19:30]} {[%emt 00:07:22]} fxe4 {[%clk 00:47:36]} {[%emt
00:00:01]} 20. Nfd4 {[%clk 00:19:02]} {[%emt 00:00:58]} Rdc8 {[%clk 00:35:28]}
{[%emt 00:12:38]} 21. Nf4 {[%clk 00:15:53]} {[%emt 00:03:38]} Nf8 {[%clk
00:33:18]} {[%emt 00:02:40]} 22. Qb6 {[%clk 00:15:06]} {[%emt 00:01:18]} Rcb8
{[%clk 00:30:20]} {[%emt 00:03:27]} 23. Qc5 {[%clk 00:10:08]} {[%emt 00:05:29]}
Qf7 {[%clk 00:24:17]} {[%emt 00:06:33]} 24. Nfe2 {[%clk 00:03:39]} {[%emt
00:06:59]} Qd7 {[%clk 00:16:07]} {[%emt 00:08:40]} 25. Rfd1 {[%clk 00:02:58]}
{[%emt 00:01:11]} Rd8 {[%clk 00:15:02]} {[%emt 00:01:34]} 26. Nc3 {[%clk
00:01:36]} {[%emt 00:01:53]} Qxd6 {[%clk 00:12:34]} {[%emt 00:02:57]} 27. Qa5
{[%clk 00:02:01]} {[%emt 00:00:05]} Nd7 {[%clk 00:10:30]} {[%emt 00:02:34]} 28.
Na4 {[%clk 00:01:19]} {[%emt 00:01:13]} Rdc8 {[%clk 00:07:52]} {[%emt
00:03:08]} 29. Nc5 {[%clk 00:01:21]} {[%emt 00:00:28]} Nxc5 {[%clk 00:05:43]}
{[%emt 00:02:39]} 30. bxc5 {[%clk 00:01:50]} Rxc5 {[%clk 00:05:42]} {[%emt
00:00:31]} 31. Qb4 {[%clk 00:02:17]} {[%emt 00:00:03]} Bc8 {[%clk 00:06:00]}
{[%emt 00:00:12]} 32. Nb3 {[%clk 00:02:26]} {[%emt 00:00:21]} Rc6 {[%clk
00:05:21]} {[%emt 00:01:09]} 33. Rxc4 {[%clk 00:02:55]} {[%emt 00:00:01]} Qxb4
{[%clk 00:05:07]} {[%emt 00:00:44]} 34. Rxb4 {[%clk 00:03:24]} {[%emt
00:00:01]} a5 {[%clk 00:02:17]} {[%emt 00:03:20]} 35. Nd4 {[%clk 00:01:54]}
{[%emt 00:02:00]} axb4 {[%clk 00:01:48]} {[%emt 00:00:58]} 36. Nxc6 {[%clk
00:02:19]} {[%emt 00:00:06]} Rxa2 {[%clk 00:01:51]} {[%emt 00:00:27]} 37. Nxb4
{[%clk 00:02:48]} {[%emt 00:00:01]} Rb2 {[%clk 00:02:03]} {[%emt 00:00:18]} 38.
Rc1 {[%clk 00:02:52]} {[%emt 00:00:26]} Bd7 {[%clk 00:01:50]} {[%emt 00:00:43]}
39. Nc2 {[%clk 00:03:02]} {[%emt 00:00:20]} Kf7 {[%clk 00:02:03]} {[%emt
00:00:16]} 40. Kf1 {[%clk 00:00:41]} {[%emt 00:02:52]} e5 {[%clk 00:02:03]}
{[%emt 00:00:29]} 41. Na3 {[%clk 00:14:41]} {[%emt 00:16:30]} Ra2 {[%clk
00:30:28]} {[%emt 00:02:04]} 42. Rc7 {[%clk 00:08:35]} {[%emt 00:06:36]} Ke6
{[%clk 00:30:27]} {[%emt 00:00:31]} 43. Ra7 {[%clk 00:09:00]} {[%emt 00:00:05]}
d4 {[%clk 00:29:08]} {[%emt 00:01:50]} 44. Ra6+ {[%clk 00:06:26]} {[%emt
00:03:04]} Kd5 {[%clk 00:28:23]} {[%emt 00:01:13]} 45. Ra5+ {[%clk 00:06:04]}
{[%emt 00:00:54]} Ke6 {[%clk 00:21:10]} {[%emt 00:07:43]} 46. Nc4 {[%clk
00:06:06]} {[%emt 00:00:28]} Rc2 {[%clk 00:20:49]} {[%emt 00:00:51]} 47. Nxe5
{[%clk 00:06:27]} {[%emt 00:00:09]} d3 {[%clk 00:21:02]} {[%emt 00:00:17]} 48.
Ke1 {[%clk 00:06:00]} {[%emt 00:00:57]} Re2+ {[%clk 00:20:07]} {[%emt
00:01:24]} 49. Kf1 {[%clk 00:06:17]} {[%emt 00:00:13]} Rb2 {[%clk 00:18:16]}
{[%emt 00:02:21]} 50. Ke1 {[%clk 00:06:25]} {[%emt 00:00:23]} Bb5 {[%clk
00:17:16]} {[%emt 00:01:30]} 51. f4 {[%clk 00:06:53]} {[%emt 00:00:02]} Kd5
{[%clk 00:10:54]} {[%emt 00:06:52]} 52. Ng4 {[%clk 00:02:24]} {[%emt 00:04:59]}
Kc6 {[%clk 00:09:33]} {[%emt 00:01:50]} 53. g3 {[%clk 00:01:26]} {[%emt
00:01:28]} Kb6 {[%clk 00:08:41]} {[%emt 00:01:22]} 54. Ra8 {[%clk 00:01:09]}
{[%emt 00:00:47]} h5 {[%clk 00:08:35]} {[%emt 00:00:36]} 55. Ne5 {[%clk
00:01:12]} {[%emt 00:00:28]} Rxh2 {[%clk 00:08:36]} {[%emt 00:00:28]} 56. Rb8+
{[%clk 00:01:00]} {[%emt 00:00:43]} Kc5 {[%clk 00:08:33]} {[%emt 00:00:32]} 57.
Rc8+ {[%clk 00:01:13]} {[%emt 00:00:18]} Kd6 {[%clk 00:08:12]} {[%emt
00:00:50]} 58. Nc4+ {[%clk 00:01:04]} {[%emt 00:00:39]} Bxc4 {[%clk 00:08:15]}
{[%emt 00:00:28]} 59. Rxc4 {[%clk 00:01:26]} {[%emt 00:00:08]} Re2+ {[%clk
00:08:41]} {[%emt 00:00:03]} 60. Kd1 {[%clk 00:00:50]} {[%emt 00:01:06]} Rxe3
{[%clk 00:09:07]} {[%emt 00:00:04]} 61. Kd2 {[%clk 00:01:01]} {[%emt 00:00:19]}
Kd5 {[%clk 00:09:15]} {[%emt 00:00:23]} 62. Ra4 {[%clk 00:01:06]} {[%emt
00:00:24]} Re2+ {[%clk 00:09:07]} {[%emt 00:00:38]} 63. Kd1 {[%clk 00:01:16]}
{[%emt 00:00:21]} e3 {[%clk 00:09:32]} {[%emt 00:00:05]} 0-1

[Event "NJSK 2026 Jeugd A"]
[Site "Helmond, Netherlands"]
[Date "2026.04.29"]
[Round "5.5"]
[White "Krylov, Philippe"]
[Black "Madularea, David"]
[Result "0-1"]
[TimeControl "90min/40moves + 30min + 30sec/move"]
[WhiteTitle "-"]
[BlackTitle "-"]
[WhiteFideId "1082930"]
[BlackFideId "1070215"]
[WhiteElo "2183"]
[BlackElo "2261"]

1. d4 {[%clk 01:30:54]} {[%emt 00:00:05]} Nf6 {[%clk 01:30:20]} {[%emt
00:00:40]} 2. c4 {[%clk 01:31:18]} {[%emt 00:00:07]} e6 {[%clk 01:30:40]}
{[%emt 00:00:10]} 3. Nc3 {[%clk 01:31:38]} {[%emt 00:00:09]} Bb4 {[%clk
01:31:04]} {[%emt 00:00:07]} 4. f3 {[%clk 01:31:58]} {[%emt 00:00:10]} Ba5
{[%clk 01:31:19]} {[%emt 00:00:15]} 5. e4 {[%clk 01:31:47]} {[%emt 00:00:41]}
d5 {[%clk 01:31:38]} {[%emt 00:00:11]} 6. cxd5 {[%clk 01:32:08]} {[%emt
00:00:09]} exd5 {[%clk 01:32:04]} {[%emt 00:00:04]} 7. e5 {[%clk 01:32:32]}
{[%emt 00:00:07]} Nfd7 {[%clk 01:32:31]} {[%emt 00:00:02]} 8. f4 {[%clk
01:32:35]} {[%emt 00:00:27]} c5 {[%clk 01:32:57]} {[%emt 00:00:04]} 9. Nf3
{[%clk 01:28:02]} {[%emt 00:05:03]} Nc6 {[%clk 01:33:01]} {[%emt 00:00:25]} 10.
Be3 {[%clk 01:25:40]} {[%emt 00:02:53]} cxd4 {[%clk 01:33:08]} {[%emt
00:00:23]} 11. Nxd4 {[%clk 01:23:48]} {[%emt 00:02:22]} O-O {[%clk 01:32:58]}
{[%emt 00:00:39]} 12. Be2 {[%clk 01:21:55]} {[%emt 00:02:24]} Qh4+ {[%clk
01:33:10]} {[%emt 00:00:18]} 13. g3 {[%clk 01:21:45]} {[%emt 00:00:40]} Qh3
{[%clk 01:33:20]} {[%emt 00:00:19]} 14. Bf1 {[%clk 01:17:26]} {[%emt 00:04:50]}
Qh6 {[%clk 01:33:40]} {[%emt 00:00:09]} 15. Bg2 {[%clk 01:13:58]} {[%emt
00:03:58]} Ndxe5 {[%clk 01:27:29]} {[%emt 00:06:41]} 16. Bxd5 {[%clk 00:52:49]}
{[%emt 00:21:39]} Re8 {[%clk 01:07:37]} {[%emt 00:20:23]} 17. Kf1 {[%clk
00:44:18]} {[%emt 00:09:01]} Bh3+ {[%clk 01:07:01]} {[%emt 00:01:06]} 18. Bg2
{[%clk 00:42:36]} {[%emt 00:02:11]} Ng4 {[%clk 01:05:41]} {[%emt 00:01:51]} 19.
Bg1 {[%clk 00:42:26]} {[%emt 00:00:39]} Nxd4 {[%clk 00:54:29]} {[%emt
00:11:42]} 20. Bxd4 {[%clk 00:39:39]} {[%emt 00:03:17]} Qc6 {[%clk 00:54:12]}
{[%emt 00:00:48]} 21. Rg1 {[%clk 00:28:02]} {[%emt 00:12:07]} Bxc3 {[%clk
00:52:21]} {[%emt 00:02:21]} 22. Bxh3 {[%clk 00:26:57]} {[%emt 00:01:33]} Nxh2+
{[%clk 00:52:39]} {[%emt 00:00:14]} 23. Kf2 {[%clk 00:27:10]} {[%emt 00:00:17]}
Bxd4+ {[%clk 00:53:03]} {[%emt 00:00:07]} 24. Qxd4 {[%clk 00:27:34]} {[%emt
00:00:06]} Qf3# {[%clk 00:52:57]} {[%emt 00:00:05]} 0-1

[Event "NJSK 2026 Jeugd A"]
[Site "Helmond, Netherlands"]
[Date "2026.04.29"]
[Round "5.6"]
[White "Arnold, Rhys"]
[Black "Heus, Daan"]
[Result "1-0"]
[TimeControl "90min/40moves + 30min + 30sec/move"]
[WhiteTitle "-"]
[BlackTitle "-"]
[WhiteFideId "1068849"]
[BlackFideId "40103757"]
[WhiteElo "2315"]
[BlackElo "2049"]

1. e4 {[%clk 01:30:59]} e5 {[%clk 01:30:36]} {[%emt 00:00:25]} 2. Nf3 {[%clk
01:31:05]} {[%emt 00:00:23]} Nc6 {[%clk 01:31:01]} {[%emt 00:00:06]} 3. Bb5
{[%clk 01:31:31]} {[%emt 00:00:03]} f5 {[%clk 01:30:48]} {[%emt 00:00:43]} 4.
d3 {[%clk 01:31:55]} {[%emt 00:00:07]} fxe4 {[%clk 01:31:14]} {[%emt 00:00:04]}
5. dxe4 {[%clk 01:32:20]} {[%emt 00:00:04]} Nf6 {[%clk 01:31:42]} {[%emt
00:00:02]} 6. O-O {[%clk 01:32:30]} {[%emt 00:00:20]} Bc5 {[%clk 01:32:09]}
{[%emt 00:00:03]} 7. Bxc6 {[%clk 01:32:23]} {[%emt 00:00:37]} bxc6 {[%clk
01:32:08]} {[%emt 00:00:31]} 8. Nxe5 {[%clk 01:32:08]} {[%emt 00:00:45]} O-O
{[%clk 01:32:33]} {[%emt 00:00:05]} 9. Nc3 {[%clk 01:32:31]} {[%emt 00:00:07]}
d6 {[%clk 01:32:52]} {[%emt 00:00:12]} 10. Na4 {[%clk 01:32:14]} {[%emt
00:00:47]} Qe8 {[%clk 01:32:36]} {[%emt 00:00:46]} 11. Nd3 {[%clk 01:22:44]}
{[%emt 00:09:59]} Bb6 {[%clk 01:26:20]} {[%emt 00:06:46]} 12. Nxb6 {[%clk
01:22:51]} {[%emt 00:00:23]} axb6 {[%clk 01:26:45]} {[%emt 00:00:05]} 13. f3
{[%clk 01:22:07]} {[%emt 00:01:14]} Qf7 {[%clk 01:14:59]} {[%emt 00:12:16]} 14.
b3 {[%clk 01:17:12]} {[%emt 00:05:25]} Ba6 {[%clk 01:09:41]} {[%emt 00:05:48]}
15. Bb2 {[%clk 01:11:04]} {[%emt 00:06:37]} Nh5 {[%clk 00:56:39]} {[%emt
00:13:33]} 16. Qd2 {[%clk 01:08:32]} {[%emt 00:03:02]} d5 {[%clk 00:53:04]}
{[%emt 00:04:06]} 17. Rfe1 {[%clk 01:02:02]} {[%emt 00:06:59]} Rad8 {[%clk
00:47:09]} {[%emt 00:06:25]} 18. exd5 {[%clk 00:57:10]} {[%emt 00:05:22]} Bxd3
{[%clk 00:37:49]} {[%emt 00:09:51]} 19. Qxd3 {[%clk 00:41:04]} {[%emt
00:16:35]} Nf4 {[%clk 00:35:55]} {[%emt 00:02:25]} 20. Qf1 {[%clk 00:40:02]}
{[%emt 00:01:32]} Rxd5 {[%clk 00:34:20]} {[%emt 00:02:05]} 21. Bc1 {[%clk
00:38:37]} {[%emt 00:01:56]} Rfd8 {[%clk 00:30:08]} {[%emt 00:04:42]} 22. Be3
{[%clk 00:34:29]} {[%emt 00:04:38]} Rg5 {[%clk 00:17:38]} {[%emt 00:13:00]} 23.
Bxf4 {[%clk 00:33:59]} {[%emt 00:00:59]} Qxf4 {[%clk 00:17:46]} {[%emt
00:00:22]} 24. Re4 {[%clk 00:33:21]} {[%emt 00:01:08]} Qd2 {[%clk 00:16:15]}
{[%emt 00:02:00]} 25. Qe2 {[%clk 00:30:13]} {[%emt 00:03:39]} Qxe2 {[%clk
00:15:22]} {[%emt 00:01:24]} 26. Rxe2 {[%clk 00:30:37]} {[%emt 00:00:06]} Kf7
{[%clk 00:14:47]} {[%emt 00:01:04]} 27. a4 {[%clk 00:29:25]} {[%emt 00:01:42]}
Rgd5 {[%clk 00:13:28]} {[%emt 00:01:49]} 28. Kf2 {[%clk 00:25:33]} {[%emt
00:04:21]} Rd1 {[%clk 00:11:07]} {[%emt 00:02:51]} 29. Rxd1 {[%clk 00:24:22]}
{[%emt 00:01:42]} Rxd1 {[%clk 00:11:35]} {[%emt 00:00:02]} 30. Ke3 {[%clk
00:23:48]} {[%emt 00:01:03]} Ke6 {[%clk 00:10:15]} {[%emt 00:01:50]} 31. Kf4+
{[%clk 00:16:29]} {[%emt 00:07:50]} Kf6 {[%clk 00:10:25]} {[%emt 00:00:19]} 32.
h4 {[%clk 00:15:56]} {[%emt 00:01:04]} Rd4+ {[%clk 00:09:40]} {[%emt 00:01:15]}
33. Re4 {[%clk 00:14:53]} {[%emt 00:01:33]} Rd2 {[%clk 00:09:59]} {[%emt
00:00:11]} 34. Rc4 {[%clk 00:15:16]} {[%emt 00:00:08]} c5 {[%clk 00:09:04]}
{[%emt 00:01:25]} 35. g4 {[%clk 00:12:51]} {[%emt 00:02:55]} g6 {[%clk
00:07:20]} {[%emt 00:02:13]} 36. b4 {[%clk 00:09:13]} {[%emt 00:04:07]} cxb4
{[%clk 00:06:59]} {[%emt 00:00:52]} 37. Rxc7 {[%clk 00:09:26]} {[%emt
00:00:17]} h6 {[%clk 00:06:19]} {[%emt 00:01:10]} 38. Rc6+ {[%clk 00:09:24]}
{[%emt 00:00:32]} Kf7 {[%clk 00:06:19]} {[%emt 00:00:30]} 39. Rc4 {[%clk
00:09:07]} {[%emt 00:00:47]} Kg7 {[%clk 00:05:18]} {[%emt 00:01:31]} 40. Ke5
{[%clk 00:06:58]} {[%emt 00:02:39]} Rf2 {[%clk 00:04:48]} {[%emt 00:01:00]} 41.
Rc7+ {[%clk 00:01:56]} {[%emt 00:05:31]} Kf8 {[%clk 00:02:11]} {[%emt
00:03:07]} 42. Kf6 {[%clk 00:29:27]} {[%emt 00:03:01]} Rxf3+ {[%clk 00:32:33]}
{[%emt 00:00:07]} 43. Kxg6 {[%clk 00:29:54]} {[%emt 00:00:03]} b3 {[%clk
00:29:17]} {[%emt 00:03:47]} 44. cxb3 {[%clk 00:28:52]} {[%emt 00:01:32]} Rxb3
{[%clk 00:29:32]} {[%emt 00:00:14]} 45. Rc4 {[%clk 00:28:55]} {[%emt 00:00:27]}
b5 {[%clk 00:28:28]} {[%emt 00:01:34]} 46. axb5 {[%clk 00:29:14]} {[%emt
00:00:11]} Rxb5 {[%clk 00:28:52]} {[%emt 00:00:06]} 47. Rc8+ {[%clk 00:28:59]}
{[%emt 00:00:44]} Ke7 {[%clk 00:29:17]} {[%emt 00:00:06]} 48. Kxh6 {[%clk
00:29:25]} {[%emt 00:00:04]} Rb4 {[%clk 00:29:22]} {[%emt 00:00:25]} 49. Kh5
{[%clk 00:28:51]} {[%emt 00:01:04]} Kf7 {[%clk 00:29:30]} {[%emt 00:00:22]} 50.
Rc7+ {[%clk 00:29:16]} {[%emt 00:00:05]} Kg8 {[%clk 00:29:43]} {[%emt
00:00:16]} 51. Rc5 {[%clk 00:27:42]} {[%emt 00:02:05]} Kg7 {[%clk 00:29:36]}
{[%emt 00:00:38]} 52. Kg5 {[%clk 00:28:04]} {[%emt 00:00:06]} Rb7 {[%clk
00:29:36]} {[%emt 00:00:30]} 53. h5 {[%clk 00:27:49]} {[%emt 00:00:46]} Kh7
{[%clk 00:29:45]} {[%emt 00:00:21]} 54. Re5 {[%clk 00:26:15]} {[%emt 00:02:03]}
Rg7+ {[%clk 00:29:15]} {[%emt 00:01:01]} 55. Kf5 {[%clk 00:26:31]} {[%emt
00:00:14]} Rf7+ {[%clk 00:29:19]} {[%emt 00:00:26]} 56. Ke4 {[%clk 00:24:47]}
{[%emt 00:02:13]} Rf1 {[%clk 00:28:01]} {[%emt 00:01:49]} 57. Rf5 {[%clk
00:22:48]} {[%emt 00:02:29]} Re1+ {[%clk 00:27:57]} {[%emt 00:00:34]} 58. Kf4
{[%clk 00:23:15]} {[%emt 00:00:03]} Kh6 {[%clk 00:27:43]} {[%emt 00:00:44]} 59.
Rf6+ {[%clk 00:23:31]} {[%emt 00:00:15]} Kg7 {[%clk 00:28:03]} {[%emt
00:00:09]} 60. Ra6 {[%clk 00:23:32]} {[%emt 00:00:28]} Rf1+ {[%clk 00:27:26]}
{[%emt 00:01:08]} 61. Kg5 {[%clk 00:23:57]} {[%emt 00:00:05]} Rc1 {[%clk
00:27:39]} {[%emt 00:00:17]} 62. h6+ {[%clk 00:23:39]} {[%emt 00:00:48]} Kh7
{[%clk 00:27:46]} {[%emt 00:00:23]} 63. Ra7+ {[%clk 00:24:05]} {[%emt
00:00:04]} Kg8 {[%clk 00:27:49]} {[%emt 00:00:26]} 64. Kh5 {[%clk 00:23:47]}
{[%emt 00:00:49]} Rc2 {[%clk 00:27:28]} {[%emt 00:00:51]} 65. g5 {[%clk
00:22:12]} {[%emt 00:02:06]} Rc5 {[%clk 00:27:30]} {[%emt 00:00:28]} 66. Ra1
{[%clk 00:20:45]} {[%emt 00:01:56]} Kh7 {[%clk 00:27:27]} {[%emt 00:00:33]} 67.
Rf1 {[%clk 00:20:39]} {[%emt 00:00:36]} Rb5 {[%clk 00:27:43]} {[%emt 00:00:14]}
68. Rf4 {[%clk 00:18:53]} {[%emt 00:02:13]} Ra5 {[%clk 00:27:27]} {[%emt
00:00:49]} 69. Kg4 {[%clk 00:16:56]} {[%emt 00:02:27]} Kg6 {[%clk 00:27:35]}
{[%emt 00:00:22]} 70. Rf6+ {[%clk 00:16:39]} {[%emt 00:00:48]} Kh7 {[%clk
00:28:03]} {[%emt 00:00:01]} 71. Rf7+ {[%clk 00:15:27]} {[%emt 00:01:39]} Kg8
{[%clk 00:28:16]} {[%emt 00:00:19]} 72. g6 {[%clk 00:14:25]} {[%emt 00:01:32]}
Ra4+ {[%clk 00:27:52]} {[%emt 00:00:55]} 73. Rf4 {[%clk 00:14:38]} {[%emt
00:00:17]} Ra8 {[%clk 00:27:07]} {[%emt 00:01:15]} 74. Kg5 {[%clk 00:14:56]}
{[%emt 00:00:12]} Ra5+ {[%clk 00:27:11]} {[%emt 00:00:26]} 75. Rf5 {[%clk
00:15:20]} {[%emt 00:00:06]} Ra8 {[%clk 00:27:23]} {[%emt 00:00:18]} 76. h7+
{[%clk 00:14:19]} {[%emt 00:01:31]} Kg7 {[%clk 00:26:57]} {[%emt 00:00:55]} 77.
Rf7+ {[%clk 00:14:46]} {[%emt 00:00:04]} Kh8 {[%clk 00:27:21]} {[%emt
00:00:07]} 78. Kh6 {[%clk 00:14:59]} {[%emt 00:00:16]} 1-0